fUSD/lending_fUSD_20240227
["ID","MTS","AMOUNT","RATE_DAILY","PERIOD"]
[315410588,1709017831655,-203.0,0.00019835,5]
[315410589,1709017831664,-285.0,0.00019898,2]
[315410590,1709017831675,-2289.18995107,0.0002,2]
[315410591,1709017831685,-2997.0,0.0002,2]
[315410592,1709017831696,-213.60121478,0.00020502,2]
[315410593,1709017831707,-2555.0,0.00020503,2]
[315410594,1709017831718,-152.76917877,0.00020522,2]
[315410595,1709017831729,-1365.33070064,0.00020587,2]
[315410596,1709017831739,-250.0,0.00020603,2]
[315410597,1709017831749,-500.0,0.00020626,2]
[315410598,1709017831758,-387.34,0.00020637,2]
[315410599,1709017831767,-987.7285,0.00020653,2]
[315410600,1709017831777,-150.0,0.00020675,2]
[315410601,1709017831788,-2000.0,0.0002069,2]
[315410602,1709017831798,-200.0,0.000207,2]
[315410603,1709017831808,-1066.87,0.0002074,2]
[315410604,1709017831819,-23900.0,0.00020753,2]
[315410605,1709017831830,-500.0,0.00020753,2]
[315410606,1709017831839,-1000.0,0.00020758,2]
[315410607,1709017831849,-159.83,0.0002076,2]
[315410608,1709017831859,-157.93,0.00020885,2]
[315410609,1709017831869,-1365.33070064,0.00020906,2]
[315410610,1709017831879,-157.93,0.00021006,2]
[315410611,1709017831888,-1525.36,0.00021038,2]
[315410612,1709017831897,-195.97,0.00021102,2]
[315410613,1709017831907,-157.93,0.00021127,2]
[315410614,1709017831916,-203.0,0.00021131,7]
[315410615,1709017831926,-1365.33070064,0.00021143,2]
[315410616,1709017831936,-157.0,0.00021237,2]
[315410617,1709017831945,-157.93,0.00021248,2]
[315410618,1709017831955,-1107.06,0.00021332,2]
[315410619,1709017831969,-1042.499,0.00021332,2]
[315410620,1709017831978,-584.0,0.00021332,2]
[315410621,1709017831988,-2297.0,0.00021332,2]
[315410622,1709017832035,-157.93,0.00021369,2]
[315410623,1709017832045,-150.0,0.00021437,2]
[315410624,1709017832054,-488.0,0.00021437,2]
[315410625,1709017832063,-157.93,0.0002149,2]
[315410626,1709017832076,-1365.33070064,0.00021593,2]
[315410627,1709017832089,-157.93,0.00021611,2]
[315410628,1709017832099,-152.76917877,0.00021711,2]
[315410629,1709017832109,-157.93,0.00021732,2]
[315410630,1709017832118,-174.76,0.00021807,2]
[315410631,1709017832128,-1365.33070064,0.00021841,2]
[315410632,1709017832137,-150.0,0.00021847,2]
[315410633,1709017832146,-157.93,0.00021852,2]
[315410634,1709017832155,-159.7,0.00021918,2]
[315410635,1709017832164,-168.55,0.00021918,2]
[315410636,1709017832176,-2400.0,0.00021918,2]
[315410637,1709017832184,-150.0,0.00021927,2]
[315410638,1709017832194,-309.203,0.00021927,2]
[315410639,1709017832203,-993.115,0.00021927,2]
[315410640,1709017832212,-713.46,0.00021927,2]
[315410641,1709017832221,-1044.888,0.00021927,2]
[315410642,1709017832231,-690.613,0.00021927,2]
[315410643,1709017832241,-312.29,0.00021927,2]
[315410644,1709017832250,-1454.0,0.00021927,2]
[315410645,1709017832260,-237.818,0.00021927,2]
[315410646,1709017832270,-256.313,0.00021927,2]
[315410647,1709017832280,-332.578,0.00021927,2]
[315410648,1709017832289,-1365.33070064,0.00021963,2]
[315410649,1709017832299,-157.93,0.00021973,2]
[315410650,1709017832309,-750.0,0.00022,3]
[315410651,1709017832319,-224.15882708,0.00022104,3]
[315410652,1709017832329,-339.56825131,0.00022107,3]
[315410653,1709017832337,-541.03489162,0.00022107,3]
[315410654,1709017832347,-1000.0,0.0002211,3]
[315410655,1709017832357,-329.77008035,0.00022114,3]
[315410656,1709017832367,-1259.21518457,0.00022117,3]
[315410657,1709017832381,-1000.0,0.00022117,3]
[315410658,1709017832391,-480.71564056,0.0002212,3]
[315410659,1709017832400,-407.19680115,0.0002212,3]
[315410660,1709017832410,-159.7,0.00022192,2]
[315410661,1709017832421,-1365.33070064,0.00022247,2]
[315410662,1709017832430,-1066.87,0.00022383,2]
[315410663,1709017832439,-203.0,0.00022427,9]
[315410664,1709017832448,-338.88915989,0.00022452,2]
[315410665,1709017834564,-74.62084011,0.00022452,2]
[315410666,1709017834573,-150.0,0.00022452,2]
[315410667,1709017834583,-155.87106546,0.00022466,2]
[315410668,1709017834954,-3.82893454,0.00022466,2]
[315410669,1709017834964,-488.0,0.00022533,2]
[315410670,1709017834974,-1057.28301214,0.00022608,2]
[315410703,1709017837576,-150.0,0.00020641,2]
[315410704,1709017837587,-150.0,0.00021737,2]
[315410705,1709017837596,-308.0476885,0.00022608,2]
[315410706,1709017837606,-579.0,0.00022639,2]
[315410707,1709017837615,-2000.0,0.000227,2]
[315410708,1709017837624,-191.66,0.00022702,2]
[315410709,1709017837633,-159.7,0.0002274,2]
[315410710,1709017837642,-160.12,0.0002274,2]
[315410711,1709017837651,-9538.0629,0.000228,2]
[315410712,1709017837662,-687.1202,0.000228,2]
[315410713,1709017837671,-177.9,0.000228,2]
[315410714,1709017837681,-1365.33070064,0.00022803,2]
[315410715,1709017837690,-150.0,0.00022833,2]
[315410716,1709017837701,-702.78064613,0.00022891,2]
[315410717,1709017837710,-500.0,0.00022898,2]
[315410718,1709017837719,-500.0,0.00022898,2]
[315410719,1709017837730,-500.0,0.00022898,2]
[315410720,1709017837740,-500.0,0.00022898,2]
[315410721,1709017837750,-500.0,0.00022898,2]
[315410722,1709017837760,-500.0,0.00022898,2]
[315410723,1709017837769,-500.0,0.00022898,2]
[315410724,1709017837779,-500.0,0.00022898,2]
[315410725,1709017837790,-500.0,0.00022898,2]
[315410726,1709017837804,-500.0,0.00022898,2]
[315410727,1709017837813,-439.09748584,0.00022898,2]
[315410728,1709017837823,-500.0,0.00022898,2]
[315410729,1709017837833,-500.0,0.00022898,2]
[315410731,1709017837843,-539.97,0.00022898,2]
[315410733,1709017837852,-476.76897646,0.00022898,2]
[315410735,1709017837863,-500.0,0.00022898,2]
[315410737,1709017837872,-500.0,0.00022898,2]
[315410739,1709017837881,-500.0,0.00022898,2]
[315410741,1709017837890,-500.0,0.00022898,2]
[315410743,1709017837899,-500.0,0.00022898,2]
[315410745,1709017837908,-500.0,0.00022898,2]
[315410747,1709017837918,-500.0,0.00022898,2]
[315410749,1709017837927,-500.0,0.00022898,2]
[315410751,1709017837936,-500.0,0.00022898,2]
[315410753,1709017837945,-500.0,0.00022898,2]
[315410756,1709017837955,-500.0,0.00022898,2]
[315410758,1709017837964,-500.0,0.00022898,2]
[315410760,1709017837973,-1480.96,0.00022898,2]
[315410762,1709017837982,-500.0,0.00022898,2]
[315410764,1709017837991,-500.0,0.00022898,2]
[315410766,1709017838000,-773.0,0.00022898,2]
[315410768,1709017838011,-500.0,0.00022898,2]
[315410770,1709017838020,-500.0,0.00022898,2]
[315410772,1709017838030,-500.0,0.00022898,2]
[315410773,1709017838039,-500.0,0.00022898,2]
[315410774,1709017838049,-500.0,0.00022898,2]
[315410775,1709017838060,-500.0,0.00022898,2]
[315410776,1709017838069,-500.0,0.00022898,2]
[315410777,1709017838078,-500.0,0.00022898,2]
[315410778,1709017838087,-500.0,0.00022898,2]
[315410779,1709017838097,-500.0,0.00022898,2]
[315410780,1709017838106,-500.0,0.00022898,2]
[315410781,1709017838115,-500.0,0.00022898,2]
[315410782,1709017838124,-500.0,0.00022898,2]
[315410783,1709017838133,-500.0,0.00022898,2]
[315410784,1709017838142,-500.0,0.00022898,2]
[315410785,1709017838151,-536.85,0.00022898,2]
[315410786,1709017838160,-500.0,0.00022898,2]
[315410787,1709017838169,-500.0,0.00022898,2]
[315410788,1709017838179,-500.0,0.00022898,2]
[315410789,1709017838188,-5000.0,0.00022899,2]
[315410790,1709017838197,-500.0,0.00022899,2]
[315410791,1709017838207,-500.0,0.00022899,2]
[315410792,1709017838217,-194.21,0.00022899,2]
[315410793,1709017838226,-500.0,0.00022899,2]
[315410794,1709017838235,-500.0,0.00022899,2]
[315410795,1709017838248,-500.0,0.00022899,2]
[315410796,1709017838257,-500.0,0.00022899,2]
[315410797,1709017838266,-284.92,0.00022899,2]
[315410798,1709017838275,-500.0,0.00022899,2]
[315410799,1709017838284,-341.7,0.00022899,2]
[315410800,1709017838294,-500.0,0.00022899,2]
[315410801,1709017838305,-582.18,0.00022899,2]
[315410802,1709017838314,-500.0,0.00022899,2]
[315410803,1709017838324,-258.55,0.00022899,2]
[315410804,1709017838333,-500.0,0.00022899,2]
[315410805,1709017838342,-248.85212346,0.000229,2]
[315410806,1709017838351,-152.76917877,0.000229,2]
[315410807,1709017838360,-162.65638644,0.000229,2]
[315410808,1709017838370,-174.23190876,0.000229,2]
[315410809,1709017838383,-305.35,0.0002295,2]
[315410810,1709017838393,-151.00496107,0.0002297,2]
[315410811,1709017838405,-1042.53818806,0.00022977,2]
[315410812,1709017838418,-485.73715182,0.00022977,2]
[315410813,1709017838429,-359.47823459,0.00022978,2]
[315410814,1709017838438,-167.63024543,0.00022978,2]
[315410815,1709017838447,-162.83094919,0.00022978,2]
[315410816,1709017838457,-500.0,0.00022978,2]
[315410817,1709017838466,-500.0,0.00022978,2]
[315410818,1709017838476,-500.0,0.00022978,2]
[315410819,1709017838485,-500.0,0.00022978,2]
[315410820,1709017838495,-500.0,0.00022978,2]
[315410821,1709017838504,-500.0,0.00022978,2]
[315410822,1709017838513,-500.0,0.00022978,2]
[315410823,1709017838523,-500.0,0.00022978,2]
[315410824,1709017838532,-500.0,0.00022978,2]
[315410825,1709017838541,-509.96,0.00022978,2]
[315410826,1709017838551,-1215.09,0.00022978,2]
[315410827,1709017838560,-500.0,0.00022978,2]
[315410828,1709017838570,-500.0,0.00022978,2]
[315410829,1709017838579,-500.0,0.00022978,2]
[315410830,1709017838588,-2562.98,0.00022978,2]
[315410831,1709017838598,-500.0,0.00022978,2]
[315410832,1709017838607,-500.0,0.00022978,2]
[315410833,1709017838616,-500.0,0.00022978,2]
[315410834,1709017838625,-1213.76,0.00022978,2]
[315410835,1709017838635,-500.0,0.00022978,2]
[315410836,1709017838644,-500.0,0.00022978,2]
[315410837,1709017838653,-500.0,0.00022978,2]
[315410838,1709017838663,-500.0,0.00022978,2]
[315410839,1709017838672,-500.0,0.00022978,2]
[315410840,1709017838682,-500.0,0.00022978,2]
[315410841,1709017838693,-500.0,0.00022979,2]
[315410842,1709017838702,-500.0,0.00022979,2]
[315410843,1709017838712,-428.54,0.00022979,2]
[315410844,1709017838722,-500.0,0.00022979,2]
[315410845,1709017838731,-500.0,0.00022979,2]
[315410846,1709017838741,-500.0,0.00022979,2]
[315410847,1709017838750,-500.0,0.00022979,2]
[315410848,1709017838760,-500.0,0.00022979,2]
[315410849,1709017838769,-500.0,0.00022979,2]
[315410850,1709017838778,-500.0,0.00022979,2]
[315410851,1709017838788,-500.0,0.00022979,2]
[315410852,1709017838798,-500.0,0.00022979,2]
[315410853,1709017838808,-500.0,0.00022979,2]
[315410854,1709017838818,-377.89596671,0.00022979,2]
[315410855,1709017838829,-500.0,0.00022979,2]
[315410856,1709017838838,-500.0,0.00022979,2]
[315410857,1709017838848,-500.0,0.00022979,2]
[315410858,1709017838858,-500.0,0.00022979,2]
[315410859,1709017838868,-500.0,0.00022979,2]
[315410860,1709017838877,-500.0,0.00022979,2]
[315410861,1709017838887,-500.0,0.00022979,2]
[315410862,1709017838896,-500.0,0.00022979,2]
[315410863,1709017838905,-500.0,0.00022979,2]
[315410864,1709017838916,-500.0,0.00022979,2]
[315410865,1709017838926,-500.0,0.00022979,2]
[315410866,1709017838935,-647.16,0.00022979,2]
[315410867,1709017838945,-500.0,0.00022979,2]
[315410868,1709017838954,-500.0,0.00022979,2]
[315410869,1709017838963,-500.0,0.00022979,2]
[315410870,1709017838973,-500.0,0.00022979,2]
[315410871,1709017838983,-500.0,0.00022979,2]
[315410872,1709017838993,-509.67,0.00022979,2]
[315410873,1709017839003,-500.0,0.00022979,2]
[315410874,1709017839012,-500.0,0.00022979,2]
[315410875,1709017839022,-500.0,0.00022979,2]
[315410876,1709017839033,-500.0,0.00022979,2]
[315410877,1709017839043,-500.0,0.00022979,2]
[315410878,1709017839053,-500.0,0.00022979,2]
[315410879,1709017839063,-500.0,0.00022979,2]
[315410880,1709017839084,-500.0,0.00022979,2]
[315410881,1709017839095,-500.0,0.00022979,2]
[315410882,1709017839105,-500.0,0.00022979,2]
[315410883,1709017839115,-500.0,0.00022979,2]
[315410884,1709017839125,-500.0,0.00022979,2]
[315410885,1709017839135,-500.0,0.00022979,2]
[315410886,1709017839146,-500.0,0.00022979,2]
[315410887,1709017839156,-500.0,0.00022979,2]
[315410888,1709017839166,-500.0,0.00022979,2]
[315410889,1709017839177,-500.0,0.00022979,2]
[315410890,1709017839186,-438.68,0.00022979,2]
[315410891,1709017839196,-500.0,0.00022979,2]
[315410892,1709017839205,-500.0,0.00022979,2]
[315410893,1709017839214,-500.0,0.00022979,2]
[315410894,1709017839224,-500.0,0.00022979,2]
[315410895,1709017839234,-500.0,0.00022979,2]
[315410896,1709017839243,-500.0,0.00022979,2]
[315410897,1709017839253,-500.0,0.00022979,2]
[315410898,1709017839262,-500.0,0.00022979,2]
[315410899,1709017839272,-233.27,0.00022979,2]
[315410900,1709017839281,-505.89,0.00022979,2]
[315410902,1709017839291,-500.0,0.00022979,2]
[315410903,1709017839301,-500.0,0.00022979,2]
[315410904,1709017839311,-500.0,0.00022979,2]
[315410905,1709017839321,-500.43,0.00022979,2]
[315410906,1709017839332,-500.0,0.00022979,2]
[315410907,1709017839344,-500.0,0.00022979,2]
[315410908,1709017839355,-500.0,0.00022979,2]
[315410909,1709017839367,-500.0,0.00022979,2]
[315410910,1709017839381,-614.16,0.00022979,2]
[315410911,1709017839392,-614.16,0.00022979,2]
[315410912,1709017839403,-500.0,0.00022979,2]
[315410913,1709017839415,-500.0,0.00022979,2]
[315410914,1709017839426,-500.0,0.00022979,2]
[315410915,1709017839436,-154.85423755,0.00022979,2]
[315410916,1709017839446,-500.0,0.00022979,2]
[315410917,1709017839456,-623.39,0.00022979,2]
[315410918,1709017839465,-500.0,0.00022979,2]
[315410919,1709017839474,-500.0,0.00022979,2]
[315410920,1709017839484,-500.0,0.00022979,2]
[315410921,1709017839493,-500.0,0.00022979,2]
[315410922,1709017839503,-500.0,0.00022979,2]
[315410923,1709017839512,-500.0,0.00022979,2]
[315410924,1709017839523,-500.0,0.00022979,2]
[315410925,1709017839533,-500.0,0.00022979,2]
[315410926,1709017839543,-500.0,0.00022979,2]
[315410927,1709017839553,-500.0,0.00022979,2]
[315410928,1709017839563,-632.45626493,0.00022979,2]
[315410929,1709017839573,-500.0,0.00022979,2]
[315410930,1709017839583,-500.0,0.00022979,2]
[315410931,1709017839593,-500.0,0.00022979,2]
[315410932,1709017839603,-503.34,0.00022979,2]
[315410933,1709017839613,-500.0,0.00022979,2]
[315410934,1709017839623,-500.0,0.00022979,2]
[315410935,1709017839633,-500.0,0.00022979,2]
[315410936,1709017839643,-500.0,0.00022979,2]
[315410937,1709017839653,-500.0,0.00022979,2]
[315410938,1709017839663,-500.0,0.00022979,2]
[315410939,1709017839673,-500.0,0.00022979,2]
[315410940,1709017839683,-581.16,0.00022979,2]
[315410941,1709017839693,-500.0,0.00022979,2]
[315410942,1709017839704,-500.0,0.00022979,2]
[315410943,1709017839714,-601.37,0.00022979,2]
[315410944,1709017839724,-500.0,0.00022979,2]
[315410945,1709017839734,-500.0,0.00022979,2]
[315410946,1709017839743,-288.75743034,0.00022979,2]
[315410947,1709017839753,-500.0,0.00022979,2]
[315410948,1709017839763,-500.0,0.00022979,2]
[315410949,1709017839774,-649.55,0.00022979,2]
[315410950,1709017839788,-500.0,0.00022979,2]
[315410951,1709017839798,-500.0,0.00022979,2]
[315410952,1709017839807,-500.0,0.00022979,2]
[315410953,1709017839817,-500.0,0.00022979,2]
[315410954,1709017839828,-500.0,0.00022979,2]
[315410955,1709017839837,-539.97,0.00022979,2]
[315410956,1709017839849,-539.97,0.00022979,2]
[315410957,1709017839860,-500.0,0.00022979,2]
[315410958,1709017839870,-500.0,0.00022979,2]
[315410959,1709017839880,-500.0,0.00022979,2]
[315410960,1709017839890,-500.0,0.00022979,2]
[315410961,1709017839900,-500.0,0.00022979,2]
[315410963,1709017839910,-500.0,0.00022979,2]
[315410965,1709017839920,-500.0,0.00022979,2]
[315410967,1709017839931,-500.0,0.00022979,2]
[315410969,1709017839941,-543.05,0.00022979,2]
[315410971,1709017839952,-543.05,0.00022979,2]
[315410973,1709017839961,-500.0,0.00022979,2]
[315410975,1709017839972,-496.96,0.00022979,2]
[315410977,1709017839982,-475.74,0.00022979,2]
[315410978,1709017839993,-500.0,0.00022979,2]
[315410980,1709017840003,-500.0,0.00022979,2]
[315410981,1709017840014,-500.0,0.00022979,2]
[315410984,1709017840024,-500.0,0.00022979,2]
[315410987,1709017840035,-500.0,0.00022979,2]
[315410989,1709017840045,-500.0,0.00022979,2]
[315410991,1709017840055,-500.0,0.00022979,2]
[315410993,1709017840065,-500.0,0.00022979,2]
[315410995,1709017840075,-500.0,0.00022979,2]
[315410996,1709017840086,-500.0,0.00022979,2]
[315410998,1709017840096,-500.0,0.00022979,2]
[315411000,1709017840106,-500.0,0.00022979,2]
[315411001,1709017840116,-379.92,0.00022979,2]
[315411003,1709017840127,-500.0,0.00022979,2]
[315411005,1709017840137,-450.81,0.00022979,2]
[315411006,1709017840147,-500.0,0.00022979,2]
[315411008,1709017840157,-500.0,0.00022979,2]
[315411010,1709017840168,-500.0,0.00022979,2]
[315411012,1709017840178,-500.0,0.00022979,2]
[315411013,1709017840188,-500.0,0.00022979,2]
[315411015,1709017840198,-500.0,0.00022979,2]
[315411017,1709017840209,-500.0,0.00022979,2]
[315411018,1709017840219,-500.0,0.00022979,2]
[315411020,1709017840229,-500.0,0.00022979,2]
[315411021,1709017840240,-500.0,0.00022979,2]
[315411023,1709017840250,-437.43,0.00022979,2]
[315411024,1709017840260,-228.2,0.00022979,2]
[315411025,1709017840270,-560.63,0.00022979,2]
[315411026,1709017840281,-500.0,0.00022979,2]
[315411027,1709017840291,-1480.96,0.00022979,2]
[315411028,1709017840301,-500.0,0.00022979,2]
[315411029,1709017840315,-1480.96,0.00022979,2]
[315411030,1709017840325,-500.0,0.00022979,2]
[315411031,1709017840335,-500.0,0.00022979,2]
[315411032,1709017840345,-500.0,0.00022979,2]
[315411033,1709017840355,-500.0,0.00022979,2]
[315411034,1709017840367,-500.0,0.00022979,2]
[315411035,1709017840378,-244.02,0.00022979,2]
[315411036,1709017840388,-500.0,0.00022979,2]
[315411037,1709017840398,-500.0,0.00022979,2]
[315411038,1709017840409,-564.76,0.00022979,2]
[315411039,1709017840419,-500.0,0.00022979,2]
[315411040,1709017840429,-500.0,0.00022979,2]
[315411041,1709017840439,-500.0,0.00022979,2]
[315411042,1709017840450,-266.07,0.00022979,2]
[315411043,1709017840461,-500.0,0.00022979,2]
[315411044,1709017840471,-1215.09,0.00022979,2]
[315411045,1709017840482,-1215.09,0.00022979,2]
[315411046,1709017840493,-773.0,0.00022979,2]
[315411047,1709017840503,-773.0,0.00022979,2]
[315411048,1709017840513,-500.0,0.00022979,2]
[315411049,1709017840523,-500.0,0.00022979,2]
[315411050,1709017840534,-500.0,0.00022979,2]
[315411051,1709017840544,-553.52,0.00022979,2]
[315411052,1709017840554,-500.0,0.00022979,2]
[315411053,1709017840563,-500.0,0.00022979,2]
[315411054,1709017840574,-500.0,0.00022979,2]
[315411055,1709017840585,-500.0,0.00022979,2]
[315411056,1709017840596,-500.0,0.00022979,2]
[315411057,1709017840606,-500.0,0.00022979,2]
[315411058,1709017840617,-500.0,0.00022979,2]
[315411059,1709017840626,-79.9113218,0.00022979,2]
[315411060,1709017840649,-420.0886782,0.00022979,2]
[315411061,1709017840659,-500.0,0.00022979,2]
[315411062,1709017840669,-190.01418465,0.00022979,2]
[315411063,1709017840679,-500.0,0.00022979,2]
[315411064,1709017840690,-500.0,0.00022979,2]
[315411065,1709017840700,-500.0,0.00022979,2]
[315411066,1709017840710,-300.32,0.00022979,2]
[315411067,1709017840720,-500.0,0.00022979,2]
[315411068,1709017840730,-500.0,0.00022979,2]
[315411069,1709017840740,-500.0,0.00022979,2]
[315411070,1709017840750,-500.0,0.00022979,2]
[315411071,1709017840760,-500.0,0.00022979,2]
[315411072,1709017840770,-2562.98,0.00022979,2]
[315411073,1709017840781,-537.87,0.00022979,2]
[315411074,1709017840790,-1048.48713718,0.00022979,2]
[315411075,1709017840804,-1514.49286282,0.00022979,2]
[315411076,1709017840814,-500.0,0.00022979,2]
[315411077,1709017840824,-500.0,0.00022979,2]
[315411078,1709017840838,-500.0,0.00022979,2]
[315411079,1709017840849,-500.0,0.00022979,2]
[315411080,1709017840859,-500.0,0.00022979,2]
[315411081,1709017840869,-578.14,0.00022979,2]
[315411082,1709017840880,-354.04,0.00022979,2]
[315411083,1709017840890,-500.0,0.00022979,2]
[315411084,1709017840900,-500.0,0.00022979,2]
[315411085,1709017840910,-500.0,0.00022979,2]
[315411086,1709017840921,-500.0,0.00022979,2]
[315411087,1709017840932,-500.0,0.00022979,2]
[315411088,1709017840942,-500.0,0.00022979,2]
[315411089,1709017840952,-500.0,0.00022979,2]
[315411090,1709017840962,-500.0,0.00022979,2]
[315411091,1709017840974,-500.0,0.00022979,2]
[315411092,1709017840984,-500.0,0.00022979,2]
[315411093,1709017840995,-345.94,0.00022979,2]
[315411095,1709017841005,-500.0,0.00022979,2]
[315411097,1709017841016,-500.0,0.00022979,2]
[315411099,1709017841025,-500.0,0.00022979,2]
[315411100,1709017841036,-500.0,0.00022979,2]
[315411101,1709017841046,-1213.76,0.00022979,2]
[315411102,1709017841056,-555.87713718,0.00022979,2]
[315411103,1709017841092,-657.88286282,0.00022979,2]
[315411104,1709017841104,-474.11746173,0.00022979,2]
[315411105,1709017841114,-192.09,0.00022979,2]
[315411106,1709017841125,-500.0,0.00022979,2]
[315411107,1709017841136,-612.12,0.00022979,2]
[315411108,1709017841147,-500.0,0.00022979,2]
[315411109,1709017841157,-500.0,0.00022979,2]
[315411110,1709017841168,-260.64693118,0.00022979,2]
[315411111,1709017841182,-239.35306882,0.00022979,2]
[315411112,1709017841192,-292.71,0.00022979,2]
[315411113,1709017841202,-49.63096916,0.00022979,2]
[315411114,1709017841241,-450.36903084,0.00022979,2]
[315411115,1709017841251,-500.0,0.00022979,2]
[315411116,1709017841261,-536.85,0.00022979,2]
[315411117,1709017841271,-536.85,0.00022979,2]
[315411118,1709017841281,-622.14,0.00022979,2]
[315411119,1709017841291,-500.0,0.00022979,2]
[315411120,1709017841300,-500.0,0.00022979,2]
[315411121,1709017841310,-500.0,0.00022979,2]
[315411122,1709017841320,-500.0,0.00022979,2]
[315411123,1709017841330,-500.0,0.00022979,2]
[315411124,1709017841340,-500.0,0.00022979,2]
[315411125,1709017841350,-500.0,0.00022979,2]
[315411126,1709017841360,-500.0,0.00022979,2]
[315411127,1709017841370,-500.0,0.00022979,2]
[315411128,1709017841384,-500.0,0.00022979,2]
[315411129,1709017841393,-500.0,0.00022979,2]
[315411130,1709017841404,-280.05662322,0.00022979,2]
[315411131,1709017841546,-219.94337678,0.00022979,2]
[315411132,1709017841556,-566.12,0.00022979,2]
[315411133,1709017841566,-500.0,0.00022979,2]
[315411134,1709017841575,-12639.05442016,0.0002298,2]
[315411135,1709017841691,-192.15999995,0.0002298,2]
[315411146,1709017842646,-500.0,0.00022898,2]
[315411147,1709017842656,-280.3279083,0.0002298,2]
[315411148,1709017842669,-1704.52597593,0.0002298,2]
[315411149,1709017842810,-468.05389375,0.0002298,2]
[315411150,1709017842974,-278.38,0.00022979,2]
[315411151,1709017842984,-27788.45,0.0002298,2]
[315411185,1709017845575,-158.0,0.00020641,2]
[315411186,1709017845852,-209.13,0.0002297,3]
[315411187,1709017845861,-213.60121478,0.00022979,2]
[315411188,1709017845872,-119.29378522,0.0002298,2]
[315411189,1709017845884,-2690.340856,0.0002298,2]
[315411190,1709017845901,-6017.68399372,0.0002298,2]
[315411564,1709017895365,-68201.74193932,0.0002298,2]
[315411565,1709017924404,203.0,0.00016244,2]
[315411566,1709017976239,8078.4190605,0.00016244,2]
[315411567,1709017980257,1710.40479226,0.00016244,2]
[315411568,1709017980733,8078.4190605,0.00016244,2]
[315411569,1709017984791,1710.40479226,0.00016244,2]
[315411570,1709018012742,4488.01058917,0.00016244,2]
[315411571,1709018021989,891.12089677,0.00016244,2]
[315411572,1709018026757,151.0,0.00029697,120]
[315411573,1709018030743,2338.25351696,0.00016244,2]
[315411574,1709018042054,891.12089677,0.00016244,2]
[315411575,1709018054852,2338.25351696,0.00016244,2]
[315411576,1709018065988,891.12089677,0.00016244,2]
[315411577,1709018076958,2338.25351696,0.00016244,2]
[315411578,1709018084002,891.12089677,0.00016244,2]
[315411579,1709018084249,-535.53265582,0.0001761,2]
[315411580,1709018084275,-203.0,0.00017611,3]
[315411581,1709018084299,-203.0,0.00018979,5]
[315411582,1709018084322,-46948.817879,0.0002,2]
[315411583,1709018084347,-1575.75,0.00020042,2]
[315411584,1709018084371,-213.60121478,0.00020345,2]
[315411585,1709018084399,-203.0,0.00020346,7]
[315411586,1709018084429,-521.0,0.00020641,2]
[315411587,1709018084455,-7319.3593,0.00021,2]
[315411588,1709018084481,-172.6,0.00021381,2]
[315411589,1709018084507,-1224.15,0.00021422,2]